fUSD/lending_fUSD_20251104
["ID","MTS","AMOUNT","RATE_DAILY","PERIOD"]
[392998271,1762214433960,-500.0,0.00014773,2]
[392998272,1762214591549,300.0,0.00027397,120]
[392998273,1762214897601,300.0,0.00027397,120]
[392998274,1762214919750,1069.49,0.00027288,120]
[392998275,1762214968439,-500.0,0.000165,2]
[392998276,1762214968460,-401.73120724,0.0001796,2]
[392998277,1762214995827,-158.06634947,0.0001796,2]
[392998347,1762215037802,-2357.3564429,0.0001815,11]
[392998348,1762215037812,-195.0,0.0001815,2]
[392998349,1762215037821,-151.0,0.00019178,2]
[392998350,1762215037832,-1351.53,0.00019204,2]
[392998351,1762215037848,-2000.0,0.000197,2]
[392998352,1762215037859,-156.587,0.00019726,2]
[392998353,1762215037868,-162.380719,0.00020274,2]
[392998354,1762215037878,-168.3888056,0.00020822,2]
[392998355,1762215037888,-565.42034982,0.0002127,3]
[392998356,1762215037897,-1200.0,0.00021368,2]
[392998357,1762215037907,-300.0,0.00021368,2]
[392998358,1762215037915,-1788.13469368,0.0002137,2]
[392998359,1762215037943,-2197.63810758,0.0002137,2]
[392998360,1762215037955,-6508.38719874,0.0002137,2]
[392998361,1762215037965,-174.61919141,0.0002137,2]
[392998362,1762215037974,-250.0,0.0002183,2]
[392998363,1762215037983,-1069.49,0.0002183,2]
[392998364,1762215037993,-500.0,0.0002183,2]
[392998365,1762215038002,-181.08010149,0.00021918,2]
[392998366,1762215038011,-2602.5,0.00022175,2]
[392998367,1762215038020,-11902.24,0.00022285,2]
[392998368,1762215038029,-187.78006525,0.00022466,2]
[392998369,1762215038039,-565.42034982,0.00022833,3]
[392998370,1762215038048,-518.61435154,0.00022919,2]
[392998371,1762215038058,-500.0,0.00022919,2]
[392998372,1762215038068,-500.0,0.00022919,2]
[392998373,1762215038077,-500.0,0.00022919,2]
[392998374,1762215038087,-500.0,0.00022919,2]
[392998375,1762215038096,-500.0,0.00022919,2]
[392998376,1762215038105,-500.0,0.00022919,2]
[392998377,1762215038115,-500.0,0.00022919,2]
[392998378,1762215038125,-500.0,0.00022919,2]
[392998379,1762215038135,-500.0,0.00022919,2]
[392998380,1762215038144,-500.0,0.00022919,2]
[392998381,1762215038154,-500.0,0.00022919,2]
[392998382,1762215038163,-500.0,0.00022919,2]
[392998383,1762215038173,-500.0,0.00022919,2]
[392998384,1762215038183,-290.0,0.00022919,2]
[392998385,1762215038192,-500.0,0.00022919,2]
[392998387,1762215038202,-500.0,0.00022919,2]
[392998389,1762215038213,-295.0,0.00022919,2]
[392998391,1762215038223,-200.0,0.0002292,2]
[392998393,1762215038233,-500.0,0.0002292,2]
[392998395,1762215038243,-500.0,0.0002292,2]
[392998397,1762215038253,-500.0,0.0002292,2]
[392998399,1762215038263,-500.0,0.0002292,2]
[392998400,1762215038273,-500.0,0.0002292,2]
[392998403,1762215038284,-151.0,0.0002292,2]
[392998407,1762215038294,-200.0,0.0002292,2]
[392998410,1762215038304,-500.0,0.0002292,2]
[392998412,1762215038314,-151.0,0.0002292,2]
[392998413,1762215038324,-151.0,0.0002292,2]
[392998415,1762215038334,-500.0,0.0002292,2]
[392998416,1762215038344,-151.0,0.0002292,2]
[392998417,1762215038354,-500.0,0.0002292,2]
[392998418,1762215038364,-151.0,0.0002292,2]
[392998420,1762215038373,-500.0,0.0002292,2]
[392998422,1762215038383,-151.0,0.0002292,2]
[392998423,1762215038393,-500.0,0.0002292,2]
[392998424,1762215038403,-151.0,0.0002292,2]
[392998425,1762215038412,-151.0,0.0002292,2]
[392998426,1762215038422,-151.0,0.0002292,2]
[392998427,1762215038432,-151.0,0.0002292,2]
[392998428,1762215038442,-151.0,0.0002292,2]
[392998429,1762215038452,-500.0,0.0002292,2]
[392998430,1762215038461,-330.25732926,0.0002292,2]
[392998431,1762215038471,-200.0,0.0002292,2]
[392998432,1762215038481,-22514.98897855,0.00022934,2]
[392998433,1762215038492,-194.72792766,0.00023014,2]
[392998434,1762215038502,-250.0,0.000231,2]
[392998435,1762215038511,-2806.66039569,0.00023177,2]
[392998436,1762215038520,-1196.1843036,0.00023232,2]
[392998437,1762215038530,-1566.4156406,0.00023232,2]
[392998438,1762215038539,-842.5595597,0.00023232,2]
[392998439,1762215038549,-157.19198018,0.00023273,2]
[392998440,1762215038559,-500.0,0.00023273,2]
[392998441,1762215038569,-500.0,0.00023273,2]
[392998442,1762215038579,-500.0,0.00023273,2]
[392998443,1762215038590,-502.20874764,0.00023273,2]
[392998444,1762215038599,-348.9,0.00023273,2]
[392998445,1762215038610,-500.0,0.00023273,2]
[392998446,1762215038620,-500.0,0.00023273,2]
[392998447,1762215038629,-151.0,0.00023274,7]
[392998448,1762215038639,-532.97,0.00023276,2]
[392998449,1762215038650,-1977.55,0.00023276,2]
[392998450,1762215038664,-199.88388796,0.00023276,2]
[392998451,1762215038674,-369.48764131,0.00023276,2]
[392998452,1762215038685,-500.0,0.00023276,2]
[392998453,1762215038695,-1285.8439655,0.00023277,2]
[392998454,1762215038705,-2018.3895903,0.00023277,2]
[392998455,1762215038719,-111694.8714242,0.00023277,2]
[392998456,1762215038728,-2000.0,0.000234,2]
[392998457,1762215038738,-191.96998562,0.00023462,2]
[392998458,1762215038748,-200.0,0.00023468,2]
[392998459,1762215038759,-500.0,0.00023468,2]
[392998460,1762215038769,-200.0,0.00023468,2]
[392998461,1762215038779,-166.66,0.00023504,30]
[392998462,1762215038790,-36438.41634679,0.0002355,2]
[392998463,1762215038800,-201.93286099,0.00023562,2]
[392998464,1762215038809,-500.0,0.00023571,2]
[392998465,1762215038819,-500.0,0.00023649,2]
[392998466,1762215038828,-500.0,0.00023649,2]
[392998467,1762215038838,-506.73,0.00023649,2]
[392998468,1762215038848,-500.0,0.00023649,2]
[392998469,1762215038858,-500.0,0.00023649,2]
[392998470,1762215038868,-5699.86500883,0.00023649,2]
[392998471,1762215038878,-198.95642305,0.00023667,6]
[392998472,1762215038888,-500.0,0.00023757,2]
[392998473,1762215038898,-158.08720057,0.00023781,2]
[392998474,1762215038908,-226.25944301,0.00023781,2]
[392998475,1762215038918,-4583.0641,0.00023781,2]
[392998476,1762215038928,-8165.95361132,0.00023781,2]
[392998477,1762215038938,-6622.75532283,0.0002382,2]
[392998478,1762215038949,-18018.62,0.00023915,2]
[392998479,1762215038959,-166.66,0.00023999,30]
[392998480,1762215038968,-200.0,0.00024016,2]
[392998481,1762215038979,-500.0,0.00024016,2]
[392998482,1762215038990,-200.0,0.00024016,2]
[392998483,1762215039000,-166.66,0.00024042,2]
[392998484,1762215039012,-162.86,0.00024062,2]
[392998485,1762215039024,-298.00667974,0.0002411,2]
[392998486,1762215039034,-277.94615478,0.00024179,2]
[392998487,1762215039045,-300.0,0.0002425,2]
[392998488,1762215039056,-150.0,0.00024401,2]
[392998489,1762215039066,-2806.66039568,0.00024415,2]
[392998490,1762215039076,-166.66,0.00024494,30]
[392998491,1762215039086,-500.0,0.00024559,2]
[392998492,1762215039097,-1069.49,0.00024559,2]
[392998493,1762215039107,-200.0,0.00024564,2]
[392998494,1762215039117,-500.0,0.00024564,2]
[392998495,1762215039127,-200.0,0.00024564,2]
[392998496,1762215039137,-1000.0,0.00024658,2]
[392998497,1762215039147,-341.8,0.00024658,2]
[392998498,1762215039157,-151.0,0.00024797,7]
[392998499,1762215039167,-26829.0885046,0.000248,2]
[392998500,1762215039178,-166.66,0.0002481,2]
[392998501,1762215039188,-159.154533,0.00024832,2]
[392998502,1762215039202,-26829.0885046,0.0002491,2]
[392998503,1762215039212,-500.0,0.00024932,2]
[392998504,1762215039223,-166.66,0.00024989,30]
[392998505,1762215039232,-200.0,0.00025112,2]
[392998506,1762215039242,-500.0,0.00025112,2]
[392998507,1762215039253,-200.0,0.00025112,2]
[392998508,1762215039262,-6622.75532274,0.0002515,2]
[392998509,1762215039272,-321.0,0.0002538,2]
[392998510,1762215039282,-191.96998561,0.00025382,2]
[392998511,1762215039292,-500.0,0.00025481,7]
[392998512,1762215039302,-166.66,0.00025484,30]
[392998513,1762215039313,-200.0,0.00025566,2]
[392998514,1762215039322,-166.66,0.00025579,2]
[392998515,1762215039332,-300.0,0.0002562,2]
[392998516,1762215039342,-2806.66039568,0.00025654,2]
[392998517,1762215039352,-207.4,0.00025659,2]
[392998518,1762215039361,-200.0,0.0002566,2]
[392998519,1762215039371,-200.0,0.0002566,2]
[392998520,1762215039380,-500.0,0.00025729,7]
[392998521,1762215039390,-4583.0641,0.00025781,2]
[392998522,1762215039400,-1566.4156406,0.00025792,2]
[392998523,1762215039409,-500.0,0.00025821,7]
[392998524,1762215039418,-211.82,0.00025954,2]
[392998525,1762215039428,-307.14,0.00025954,2]
[392998526,1762215039437,-166.66,0.00025979,30]
[392998527,1762215039446,-1000.0,0.00026027,2]
[392998528,1762215039458,-842.5595597,0.00026093,2]
[392998529,1762215039467,-500.0,0.0002616,7]
[392998530,1762215039476,-1196.1843036,0.00026201,2]
[392998531,1762215039485,-200.0,0.00026208,2]
[392998532,1762215039494,-200.0,0.00026208,2]
[392998533,1762215039503,-500.0,0.00026232,7]
[392998534,1762215039513,-500.0,0.00026249,7]
[392998535,1762215039522,-1000.0,0.00026301,2]
[392998536,1762215039532,-166.66,0.00026347,2]
[392998537,1762215039541,-500.0,0.00026379,2]
[392998538,1762215039551,-6622.75532274,0.0002648,2]
[392998539,1762215039560,-500.0,0.00026525,7]
[392998540,1762215039570,-2000.0,0.00026575,2]
[392998541,1762215039579,-7273.0,0.00026603,2]
[392998542,1762215039588,-1285.8439655,0.00026604,2]
[392998543,1762215039597,-2018.3895903,0.00026604,2]
[392998544,1762215039607,-970.89,0.00026676,2]
[392998545,1762215039616,-500.0,0.00026711,7]
[392998546,1762215039625,-26829.0885046,0.00026848,2]
[392998547,1762215039634,-1000.0,0.00026849,2]
[392998548,1762215039643,-500.0,0.00026855,7]
[392998549,1762215039653,-159.15453297,0.00026858,2]
[392998550,1762215039662,-151.0,0.00026864,7]
[392998551,1762215039671,-53658.1770092,0.00026867,2]
[392998552,1762215039681,-40373.135217,0.00026867,2]
[392998553,1762215039690,-26829.0885046,0.00026867,2]
[392998554,1762215039700,-20186.5676085,0.00026867,2]
[392998555,1762215039710,-500.0,0.00026873,2]
[392998556,1762215039721,-500.0,0.00026876,2]
[392998557,1762215039731,-506.73,0.00026876,2]
[392998558,1762215039741,-500.0,0.00026876,2]
[392998559,1762215039750,-500.0,0.00026876,2]
[392998560,1762215039761,-1977.55,0.00026876,2]
[392998561,1762215039771,-111694.8714242,0.00026877,2]
[392998562,1762215039780,-151.0,0.00026877,7]
[392998563,1762215039792,-151.0,0.00026877,7]
[392998564,1762215039802,-156.069111,0.00026877,7]
[392998565,1762215039811,-151.0,0.00026877,7]
[392998566,1762215039820,-151.0,0.00026877,7]
[392998567,1762215039829,-151.0,0.00026877,7]
[392998569,1762215039838,-213.260896,0.00026877,7]
[392998570,1762215040024,-151.0,0.00026877,7]
[392998571,1762215040034,-151.0,0.00026877,7]
[392998572,1762215040043,-151.0,0.00026877,7]
[392998573,1762215040054,-151.0,0.00026877,7]
[392998574,1762215040064,-151.0,0.00026877,7]
[392998575,1762215040073,-151.0,0.00026877,7]
[392998576,1762215040083,-152.093355,0.00026877,7]
[392998577,1762215040092,-151.0,0.00026877,7]
[392998578,1762215040102,-151.0,0.00026877,7]
[392998579,1762215040111,-151.0,0.00026877,7]
[392998580,1762215040120,-151.0,0.00026877,7]
[392998581,1762215040130,-151.0,0.00026877,7]
[392998582,1762215040139,-151.0,0.00026877,7]
[392998583,1762215040148,-151.0,0.00026877,7]
[392998584,1762215040157,-151.0,0.00026877,7]
[392998585,1762215040167,-151.0,0.00026877,7]
[392998586,1762215040176,-156.437433,0.00026877,7]
[392998587,1762215040185,-151.0,0.00026877,7]
[392998588,1762215040195,-276.788832,0.00026877,7]
[392998589,1762215040206,-276.788832,0.00026877,7]
[392998590,1762215040215,-276.788832,0.00026877,7]
[392998591,1762215040224,-276.788832,0.00026877,7]
[392998592,1762215040234,-151.0,0.00026877,7]
[392998593,1762215040243,-151.0,0.00026877,7]
[392998594,1762215040252,-151.0,0.00026877,7]
[392998595,1762215040262,-152.536636,0.00026877,7]
[392998596,1762215040271,-151.0,0.00026877,7]
[392998597,1762215040280,-151.0,0.00026877,7]
[392998598,1762215040288,-151.0,0.00026877,7]
[392998599,1762215040298,-151.0,0.00026877,7]
[392998600,1762215040307,-151.0,0.00026877,7]
[392998601,1762215040317,-151.0,0.00026877,7]
[392998602,1762215040327,-151.0,0.00026877,7]
[392998603,1762215040336,-151.0,0.00026877,7]
[392998604,1762215040345,-151.0,0.00026877,7]
[392998605,1762215040354,-151.0,0.00026877,7]
[392998606,1762215040363,-151.0,0.00026877,7]
[392998607,1762215040373,-151.0,0.00026877,7]
[392998608,1762215040382,-151.0,0.00026877,7]
[392998609,1762215040392,-151.0,0.00026877,7]
[392998610,1762215040401,-258.993616,0.00026877,7]
[392998611,1762215040410,-151.0,0.00026877,7]
[392998612,1762215040419,-151.0,0.00026877,7]
[392998613,1762215040428,-161.786431,0.00026877,7]
[392998614,1762215040437,-161.786431,0.00026877,7]
[392998616,1762215040446,-161.786431,0.00026877,7]
[392998618,1762215040456,-151.0,0.00026877,7]
[392998620,1762215040465,-161.786431,0.00026877,7]
[392998622,1762215040474,-151.0,0.00026877,7]
[392998624,1762215040483,-151.0,0.00026877,7]
[392998626,1762215040492,-151.0,0.00026877,7]
[392998628,1762215040502,-151.0,0.00026877,7]
[392998630,1762215040512,-151.0,0.00026877,7]
[392998632,1762215040521,-151.0,0.00026877,7]
[392998634,1762215040530,-151.0,0.00026877,7]
[392998636,1762215040539,-151.0,0.00026877,7]
[392998638,1762215040548,-151.0,0.00026877,7]
[392998640,1762215040557,-151.0,0.00026877,7]
[392998642,1762215040566,-175.508233,0.00026877,7]
[392998644,1762215040574,-151.0,0.00026877,7]
[392998646,1762215040583,-164.127754,0.00026877,7]
[392998648,1762215040592,-151.0,0.00026877,7]
[392998649,1762215040601,-151.0,0.00026877,7]
[392998651,1762215040610,-164.127754,0.00026877,7]
[392998653,1762215040619,-246.070478,0.00026877,7]
[392998656,1762215040627,-164.127754,0.00026877,7]
[392998658,1762215040637,-246.070478,0.00026877,7]
[392998660,1762215040646,-164.127754,0.00026877,7]
[392998661,1762215040655,-199.688269,0.00026877,7]
[392998663,1762215040664,-246.070478,0.00026877,7]
[392998665,1762215040674,-199.688269,0.00026877,7]
[392998667,1762215040683,-246.070478,0.00026877,7]
[392998668,1762215040693,-199.688269,0.00026877,7]
[392998669,1762215040703,-151.0,0.00026877,7]
[392998670,1762215040714,-199.688269,0.00026877,7]
[392998671,1762215040725,-151.0,0.00026877,7]
[392998672,1762215040735,-151.0,0.00026877,7]
[392998673,1762215040745,-151.0,0.00026877,7]
[392998674,1762215040755,-151.0,0.00026877,7]
[392998675,1762215040766,-151.0,0.00026877,7]
[392998676,1762215040775,-151.0,0.00026877,7]
[392998677,1762215040785,-151.0,0.00026877,7]
[392998678,1762215040795,-151.0,0.00026877,7]
[392998679,1762215040804,-162.191317,0.00026877,7]
[392998680,1762215040814,-910.99,0.00026877,2]
[392998681,1762215040823,-381.804135,0.00026877,7]
[392998682,1762215040832,-381.804135,0.00026877,7]
[392998683,1762215040842,-151.0,0.00026877,7]
[392998684,1762215040852,-381.804135,0.00026877,7]
[392998685,1762215040861,-268.839956,0.00026877,7]
[392998686,1762215040871,-381.804135,0.00026877,7]
[392998687,1762215040880,-268.839956,0.00026877,7]
[392998688,1762215040889,-268.839956,0.00026877,7]
[392998689,1762215040898,-151.0,0.00026877,7]
[392998690,1762215040907,-268.839956,0.00026877,7]
[392998691,1762215040917,-337.239195,0.00026877,7]
[392998692,1762215040927,-337.239195,0.00026877,7]
[392998693,1762215040936,-151.0,0.00026877,7]
[392998694,1762215040946,-337.239195,0.00026877,7]
[392998695,1762215040957,-151.0,0.00026877,7]
[392998696,1762215040966,-151.0,0.00026877,7]
[392998697,1762215040975,-151.0,0.00026877,7]
[392998698,1762215040985,-337.239195,0.00026877,7]
[392998699,1762215040994,-151.0,0.00026877,7]
[392998700,1762215041003,-151.0,0.00026877,7]
[392998701,1762215041012,-151.0,0.00026877,7]
[392998702,1762215041022,-151.923589,0.00026877,5]
[392998703,1762215041031,-151.0,0.00026877,7]
[392998704,1762215041040,-151.0,0.00026877,7]
[392998705,1762215041050,-154.199714,0.00026877,7]
[392998706,1762215041059,-151.0,0.00026877,7]
[392998707,1762215041068,-151.0,0.00026877,7]
[392998708,1762215041077,-151.0,0.00026877,7]
[392998709,1762215041086,-151.0,0.00026877,7]
[392998710,1762215041095,-215.970601,0.00026877,7]
[392998711,1762215041104,-157.906412,0.00026877,7]
[392998712,1762215041113,-152.987122,0.00026877,7]
[392998713,1762215041122,-152.987122,0.00026877,7]
[392998714,1762215041131,-152.987122,0.00026877,7]
[392998715,1762215041141,-152.987122,0.00026877,7]
[392998716,1762215041150,-151.0,0.00026877,7]
[392998717,1762215041159,-166.308992,0.00026877,7]
[392998718,1762215041168,-151.0,0.00026877,7]
[392998719,1762215041177,-166.308992,0.00026877,7]
[392998720,1762215041186,-166.308992,0.00026877,7]
[392998721,1762215041196,-151.0,0.00026877,7]
[392998722,1762215041207,-174.154366,0.00026877,7]
[392998723,1762215041217,-490.523065,0.00026877,7]
[392998724,1762215041226,-151.0,0.00026877,7]
[392998725,1762215041236,-490.523065,0.00026877,7]
[392998726,1762215041245,-174.154366,0.00026877,7]
[392998727,1762215041255,-272.779969,0.00026877,7]
[392998728,1762215041264,-490.523065,0.00026877,7]
[392998729,1762215041274,-174.154366,0.00026877,7]
[392998730,1762215041283,-272.779969,0.00026877,7]
[392998731,1762215041293,-151.0,0.00026877,7]
[392998732,1762215041302,-166.308992,0.00026877,7]
[392998733,1762215041311,-301.999999,0.00026877,7]
[392998734,1762215041320,-490.523065,0.00026877,7]
[392998735,1762215041330,-174.154366,0.00026877,7]
[392998736,1762215041339,-151.0,0.00026877,7]
[392998737,1762215041348,-272.779969,0.00026877,7]
[392998738,1762215041358,-151.0,0.00026877,7]
[392998739,1762215041367,-272.779969,0.00026877,7]
[392998740,1762215041376,-214.124156,0.00026877,7]
[392998741,1762215041386,-151.0,0.00026877,7]
[392998742,1762215041395,-151.0,0.00026877,7]
[392998743,1762215041404,-151.0,0.00026877,7]
[392998744,1762215041413,-151.0,0.00026877,7]
[392998745,1762215041423,-151.0,0.00026877,7]
[392998746,1762215041432,-151.0,0.00026877,7]
[392998747,1762215041441,-162.768963,0.00026877,7]
[392998748,1762215041452,-162.768963,0.00026877,7]
[392998749,1762215041462,-162.768963,0.00026877,7]
[392998750,1762215041472,-162.768963,0.00026877,7]
[392998751,1762215041481,-187.607094,0.00026877,7]
[392998752,1762215041490,-157.659146,0.00026877,7]
[392998753,1762215041500,-157.659146,0.00026877,7]
[392998754,1762215041509,-187.607094,0.00026877,7]
[392998755,1762215041519,-187.607094,0.00026877,7]
[392998756,1762215041529,-157.659146,0.00026877,7]
[392998757,1762215041538,-157.659146,0.00026877,7]
[392998758,1762215041548,-187.607094,0.00026877,7]
[392998759,1762215041557,-151.0,0.00026877,7]
[392998760,1762215041566,-151.0,0.00026877,7]
[392998761,1762215041575,-151.0,0.00026877,7]
[392998762,1762215041585,-151.0,0.00026877,7]
[392998763,1762215041595,-151.0,0.00026877,7]
[392998764,1762215041604,-151.0,0.00026877,7]
[392998765,1762215041613,-151.0,0.00026877,7]
[392998766,1762215041622,-633.92097,0.00026877,7]
[392998767,1762215041631,-151.0,0.00026877,7]
[392998768,1762215041640,-151.0,0.00026877,7]
[392998769,1762215041649,-633.92097,0.00026877,7]
[392998770,1762215041659,-633.92097,0.00026877,7]
[392998771,1762215041668,-161.595887,0.00026877,7]
[392998772,1762215041677,-155.707145,0.00026877,7]
[392998773,1762215041686,-633.92097,0.00026877,7]
[392998774,1762215041695,-199.979937,0.00026877,7]
[392998775,1762215041705,-151.0,0.00026877,7]
[392998776,1762215041719,-151.0,0.00026877,7]
[392998777,1762215041728,-151.0,0.00026877,7]
[392998778,1762215041737,-151.0,0.00026877,7]
[392998779,1762215041747,-151.0,0.00026877,7]
[392998780,1762215041756,-151.0,0.00026877,7]
[392998781,1762215041766,-151.0,0.00026877,7]
[392998782,1762215041775,-151.0,0.00026877,7]
[392998783,1762215041784,-151.0,0.00026877,7]
[392998784,1762215041795,-151.0,0.00026877,7]
[392998785,1762215041804,-151.0,0.00026877,7]
[392998786,1762215041813,-1269.165639,0.00026877,7]
[392998787,1762215041823,-151.0,0.00026877,7]
[392998788,1762215041832,-1269.165639,0.00026877,7]
[392998789,1762215041841,-293.65762555,0.0002688,2]
[392998790,1762215041851,-2806.66039568,0.00026892,2]
[392998791,1762215041860,-500.0,0.00026944,7]
[392998792,1762215041869,-20186.5676085,0.00026969,2]
[392998793,1762215041878,-151.0,0.0002697,7]
[392998794,1762215041887,-151.0,0.0002697,7]
[392998795,1762215041897,-151.0,0.0002697,7]
[392998796,1762215041906,-151.0,0.0002697,7]
[392998797,1762215041916,-151.0,0.0002697,7]
[392998798,1762215041925,-151.0,0.0002697,7]
[392998799,1762215041935,-151.0,0.0002697,7]
[392998800,1762215041944,-151.0,0.0002697,7]
[392998801,1762215041953,-151.0,0.0002697,7]
[392998802,1762215041963,-151.0,0.0002697,7]
[392998803,1762215041972,-151.0,0.0002697,7]
[392998804,1762215041981,-257.259689,0.0002697,7]
[392998805,1762215041990,-26829.0885046,0.0002698,2]
[392998806,1762215041999,-20186.5676085,0.0002698,2]
[392998807,1762215042008,-26829.0885046,0.0002699,2]
[392998808,1762215042017,-20186.5676085,0.0002699,2]
[392998809,1762215042026,-20186.5676085,0.0002699,2]
[392998810,1762215042036,-1977.55,0.00026999,2]
[392998811,1762215042045,-26829.0885046,0.00027,2]
[392998812,1762215042054,-40373.135217,0.00027,2]
[392998813,1762215042063,-171.509977,0.00027,7]
[392998814,1762215042073,-221.851447,0.00027,7]
[392998815,1762215042083,-151.0,0.00027,7]
[392998816,1762215042091,-151.0,0.00027,7]
[392998817,1762215042100,-151.0,0.00027,7]
[392998818,1762215042110,-151.0,0.00027,7]
[392998819,1762215042119,-151.0,0.00027,7]
[392998820,1762215042128,-151.0,0.00027,7]
[392998821,1762215042138,-152.591698,0.00027,7]
[392998822,1762215042147,-151.0,0.00027,7]
[392998823,1762215042156,-151.0,0.00027,7]
[392998824,1762215042165,-151.0,0.00027,7]
[392998825,1762215042175,-151.0,0.00027,7]
[392998826,1762215042185,-151.0,0.00027,7]
[392998827,1762215042194,-151.0,0.00027,7]
[392998828,1762215042203,-154.307312,0.00027,7]
[392998829,1762215042212,-151.0,0.00027,7]
[392998830,1762215042222,-151.0,0.00027,7]
[392998831,1762215042232,-151.0,0.00027,7]
[392998832,1762215042241,-187.982132,0.00027,7]
[392998833,1762215042250,-151.0,0.00027,7]
[392998834,1762215042259,-151.0,0.00027,7]
[392998835,1762215042268,-151.0,0.00027,7]
[392998836,1762215042278,-151.0,0.00027,7]
[392998837,1762215042287,-151.0,0.00027,7]
[392998838,1762215042296,-151.0,0.00027,7]
[392998839,1762215042305,-151.0,0.00027,7]
[392998840,1762215042315,-151.0,0.00027,7]
[392998841,1762215042324,-151.0,0.00027,7]
[392998842,1762215042333,-151.0,0.00027,7]
[392998843,1762215042343,-151.0,0.00027,7]
[392998844,1762215042352,-153.736114,0.00027,7]
[392998845,1762215042361,-275.610625,0.00027,7]
[392998846,1762215042370,-235.22591,0.00027,7]
[392998847,1762215042379,-151.0,0.00027,7]
[392998848,1762215042388,-151.0,0.00027,7]
[392998849,1762215042397,-151.0,0.00027,7]
[392998850,1762215042406,-151.0,0.00027,7]
[392998851,1762215042415,-151.0,0.00027,7]
[392998852,1762215042425,-151.0,0.00027,7]
[392998853,1762215042435,-154.953267,0.00027,7]
[392998854,1762215042444,-151.0,0.00027,7]
[392998855,1762215042453,-151.0,0.00027,7]
[392998856,1762215042463,-151.0,0.00027,7]
[392998857,1762215042472,-167.674188,0.00027,7]
[392998858,1762215042481,-151.0,0.00027,7]
[392998859,1762215042490,-151.0,0.00027,7]
[392998860,1762215042499,-151.0,0.00027,7]
[392998861,1762215042508,-151.0,0.00027,7]
[392998862,1762215042517,-151.0,0.00027,7]
[392998863,1762215042526,-151.0,0.00027,7]
[392998864,1762215042537,-152.769636,0.00027,7]
[392998865,1762215042546,-151.0,0.00027,7]
[392998866,1762215042555,-151.0,0.00027,7]
[392998867,1762215042564,-151.0,0.00027,7]
[392998868,1762215042574,-151.0,0.00027,7]
[392998869,1762215042582,-151.0,0.00027,7]
[392998872,1762215042742,-151.0,0.00027,7]
[392998873,1762215042752,-151.0,0.00027,7]
[392998874,1762215042763,-298.6142024,0.00027,2]
[392998875,1762215042773,-151.0,0.00027,7]
[392998876,1762215042782,-151.0,0.00027,7]
[392998878,1762215042792,-151.0,0.00027,7]
[392998879,1762215042802,-151.0,0.00027,7]
[392998880,1762215042812,-151.0,0.00027,7]
[392998881,1762215042821,-178.052654,0.00027,7]
[392998882,1762215042830,-151.0,0.00027,7]
[392998883,1762215042840,-151.0,0.00027,7]
[392998884,1762215042850,-151.0,0.00027,7]
[392998885,1762215042859,-300.103055,0.00027,7]
[392998887,1762215042868,-151.0,0.00027,7]
[392998889,1762215042878,-151.0,0.00027,7]